fUSD/lending_fUSD_20250313
["ID","MTS","AMOUNT","RATE_DAILY","PERIOD"]
[356077794,1741884652039,-500.0,0.0002847,18]
[356077795,1741884652048,-500.0,0.0002847,18]
[356077796,1741884652057,-500.0,0.0002847,2]
[356077797,1741884652067,-500.73669132,0.0002847,18]
[356077798,1741884652076,-502.26369603,0.0002847,18]
[356077799,1741884652085,-500.0,0.0002847,18]
[356077800,1741884652094,-500.0,0.0002847,18]
[356077801,1741884652104,-501.25686354,0.0002847,18]
[356077802,1741884652114,-500.0,0.0002847,18]
[356077803,1741884652123,-501.63716636,0.0002847,18]
[356077804,1741884652136,-502.55614934,0.0002847,18]
[356077805,1741884652145,-500.0,0.0002847,18]
[356077806,1741884652154,-500.18433517,0.0002847,18]
[356077807,1741884652168,-542.23207712,0.0002847,18]
[356077808,1741884652184,-500.0,0.0002847,18]
[356077809,1741884652194,-500.0,0.0002847,18]
[356077810,1741884652205,-500.0,0.0002847,18]
[356077811,1741884652215,-500.0,0.0002847,18]
[356077812,1741884652225,-544.03,0.0002847,18]
[356077813,1741884652235,-500.31608437,0.0002847,18]
[356077814,1741884652243,-502.06356441,0.0002847,18]
[356077815,1741884652252,-500.24253104,0.0002847,18]
[356077816,1741884652261,-500.0,0.0002847,18]
[356077817,1741884652271,-500.59055394,0.0002847,18]
[356077818,1741884652280,-500.0,0.0002847,18]
[356077819,1741884652289,-500.0,0.0002847,18]
[356077820,1741884652298,-500.0,0.0002847,18]
[356077821,1741884652308,-500.0,0.0002847,18]
[356077822,1741884652317,-500.0,0.0002847,18]
[356077823,1741884652327,-500.0,0.0002847,18]
[356077824,1741884652336,-605.05,0.0002847,18]
[356077825,1741884652346,-500.0,0.0002847,18]
[356077826,1741884652356,-501.05847432,0.0002847,18]
[356077827,1741884652365,-500.0,0.0002847,18]
[356077828,1741884652374,-605.46,0.0002847,18]
[356077829,1741884652384,-500.0,0.0002847,18]
[356077830,1741884652393,-500.0,0.0002847,18]
[356077831,1741884652403,-501.1001497,0.0002847,18]
[356077832,1741884652412,-500.07968717,0.0002847,18]
[356077833,1741884652421,-500.20508814,0.0002847,18]
[356077834,1741884652431,-500.0,0.0002847,18]
[356077835,1741884652441,-571.21735526,0.0002847,18]
[356077836,1741884652450,-500.0,0.0002847,18]
[356077837,1741884652459,-500.63853936,0.0002847,18]
[356077838,1741884652469,-500.0,0.0002847,18]
[356077839,1741884652478,-503.00972327,0.0002847,18]
[356077840,1741884652487,-625.88,0.0002847,18]
[356077841,1741884652496,-500.0,0.0002847,18]
[356077842,1741884652506,-501.89328096,0.0002847,18]
[356077843,1741884652515,-500.0,0.0002847,18]
[356077844,1741884652525,-500.0,0.0002847,18]
[356077845,1741884652534,-504.1629832,0.0002847,18]
[356077846,1741884652544,-500.0,0.0002847,18]
[356077847,1741884652554,-500.0,0.0002847,18]
[356077848,1741884652563,-501.10054472,0.0002847,18]
[356077849,1741884652573,-500.0,0.0002847,18]
[356077850,1741884652582,-500.0,0.0002847,18]
[356077851,1741884652591,-323.62113912,0.0002847,18]
[356077852,1741884652600,-500.0,0.0002847,18]
[356077853,1741884652609,-500.0,0.0002847,18]
[356077854,1741884652619,-500.0,0.0002847,18]
[356077855,1741884652628,-500.0,0.0002847,18]
[356077856,1741884652637,-500.0,0.0002847,18]
[356077857,1741884652647,-500.0,0.0002847,18]
[356077858,1741884652656,-500.0,0.0002847,18]
[356077859,1741884652666,-500.0,0.0002847,18]
[356077860,1741884652675,-500.0,0.0002847,18]
[356077861,1741884652685,-545.98,0.0002847,18]
[356077862,1741884652694,-500.0,0.0002847,18]
[356077863,1741884652704,-500.0,0.0002847,10]
[356077864,1741884652713,-500.0,0.0002847,18]
[356077865,1741884652723,-500.0,0.0002847,18]
[356077866,1741884652732,-500.0,0.0002847,18]
[356077867,1741884652741,-500.0,0.0002847,18]
[356077868,1741884652750,-500.0,0.0002847,18]
[356077869,1741884652759,-500.0,0.0002847,18]
[356077870,1741884652769,-532.57023266,0.0002847,18]
[356077871,1741884652779,-500.0,0.0002847,18]
[356077872,1741884652789,-500.0,0.0002847,18]
[356077873,1741884652798,-500.0,0.0002847,18]
[356077874,1741884652807,-500.0,0.0002847,18]
[356077875,1741884652816,-500.0,0.0002847,18]
[356077876,1741884652826,-502.09681606,0.0002847,18]
[356077877,1741884652836,-502.49340862,0.0002847,18]
[356077878,1741884652846,-502.62408041,0.0002847,18]
[356077879,1741884652855,-500.0,0.0002847,18]
[356077880,1741884652996,-500.46115559,0.0002847,18]
[356077881,1741884653009,-500.0,0.0002847,18]
[356077882,1741884653018,-500.0,0.0002847,18]
[356077883,1741884653028,-503.34886329,0.0002847,18]
[356077884,1741884653038,-500.10486477,0.0002847,18]
[356077885,1741884653047,-500.0,0.0002847,18]
[356077886,1741884653056,-500.0,0.0002847,18]
[356077887,1741884653066,-500.0,0.0002847,18]
[356077888,1741884653076,-501.4594615,0.0002847,18]
[356077889,1741884653085,-500.0,0.0002847,18]
[356077890,1741884653094,-500.0,0.0002847,18]
[356077891,1741884653104,-503.4446349,0.0002847,18]
[356077892,1741884653113,-500.73544802,0.0002847,18]
[356077893,1741884653128,-578.71,0.0002847,18]
[356077894,1741884653138,-500.0,0.0002847,18]
[356077895,1741884653147,-500.0,0.0002847,18]
[356077896,1741884653157,-500.0,0.0002847,18]
[356077897,1741884653168,-500.0,0.0002847,18]
[356077898,1741884653177,-500.08336603,0.0002847,18]
[356077899,1741884653187,-500.0,0.0002847,18]
[356077900,1741884653197,-500.0,0.0002847,18]
[356077901,1741884653206,-500.0,0.0002847,18]
[356077902,1741884653215,-500.0,0.0002847,18]
[356077903,1741884653224,-513.58,0.0002847,18]
[356077904,1741884653234,-649.31,0.0002847,18]
[356077905,1741884653243,-183.167872,0.0002847,7]
[356077906,1741884653252,-151.0,0.0002847,7]
[356077907,1741884653262,-500.0,0.0002847,18]
[356077908,1741884653271,-500.0,0.0002847,18]
[356077909,1741884653280,-500.0,0.0002847,18]
[356077910,1741884653290,-575.72,0.0002847,18]
[356077911,1741884653299,-500.0,0.0002847,18]
[356077912,1741884653309,-151.0,0.0002847,7]
[356077913,1741884653318,-500.0,0.0002847,18]
[356077914,1741884653328,-500.0,0.0002847,18]
[356077915,1741884653338,-500.0,0.0002847,18]
[356077916,1741884653348,-151.0,0.0002847,7]
[356077917,1741884653357,-500.0,0.0002847,18]
[356077918,1741884653367,-500.0,0.0002847,18]
[356077919,1741884653376,-500.0,0.0002847,18]
[356077920,1741884653385,-500.0,0.0002847,18]
[356077921,1741884653395,-500.0,0.0002847,18]
[356077922,1741884653404,-500.0,0.0002847,18]
[356077923,1741884653414,-579.56,0.0002847,18]
[356077924,1741884653423,-500.0,0.0002847,18]
[356077925,1741884653432,-151.0,0.0002847,7]
[356077926,1741884653442,-1811.69813572,0.0002847,3]
[356077927,1741884653450,-500.0,0.0002847,18]
[356077928,1741884653460,-500.0,0.0002847,18]
[356077929,1741884653469,-500.0,0.0002847,18]
[356077930,1741884653478,-1102.87,0.0002847,18]
[356077931,1741884653488,-596.97,0.0002847,18]
[356077932,1741884653497,-617.62,0.0002847,18]
[356077933,1741884653506,-574.36,0.0002847,18]
[356077934,1741884653515,-507.77117682,0.0002847,18]
[356077935,1741884653524,-500.0,0.0002847,18]
[356077936,1741884653533,-1000.0,0.0002847,18]
[356077937,1741884653543,-500.0,0.0002847,18]
[356077938,1741884653552,-500.0,0.0002847,18]
[356077939,1741884653562,-500.0,0.0002847,18]
[356077940,1741884653571,-500.0,0.0002847,18]
[356077941,1741884653581,-500.0,0.0002847,18]
[356077942,1741884653590,-500.0,0.0002847,18]
[356077943,1741884653600,-500.0,0.0002847,18]
[356077944,1741884653609,-500.0,0.0002847,18]
[356077945,1741884653618,-500.0,0.0002847,18]
[356077946,1741884653627,-500.0,0.0002847,18]
[356077947,1741884653637,-500.0,0.0002847,18]
[356077948,1741884653646,-500.56302337,0.0002847,18]
[356077949,1741884653656,-500.0,0.0002847,18]
[356077950,1741884653666,-500.0,0.0002847,18]
[356077951,1741884653675,-500.0,0.0002847,18]
[356077952,1741884653685,-500.0,0.0002847,18]
[356077953,1741884653695,-594.17,0.0002847,18]
[356077954,1741884653704,-500.0,0.0002847,18]
[356077955,1741884653713,-500.0,0.0002847,18]
[356077956,1741884653723,-500.0,0.0002847,18]
[356077957,1741884653733,-500.0,0.0002847,18]
[356077958,1741884653743,-505.52,0.0002847,18]
[356077959,1741884653752,-968.555085,0.0002847,7]
[356077960,1741884653763,-500.0,0.0002847,18]
[356077961,1741884653774,-968.555085,0.0002847,7]
[356077962,1741884653784,-500.0,0.0002847,18]
[356077963,1741884653793,-500.0,0.0002847,18]
[356077964,1741884653803,-500.0,0.0002847,18]
[356077965,1741884653813,-580.37,0.0002847,18]
[356077966,1741884653822,-504.19016166,0.0002847,18]
[356077967,1741884653831,-500.0,0.0002847,18]
[356077968,1741884653840,-500.51947919,0.0002847,18]
[356077969,1741884653850,-500.0,0.0002847,18]
[356077970,1741884653859,-500.93133209,0.0002847,18]
[356077971,1741884653868,-500.0,0.0002847,18]
[356077972,1741884653878,-500.0,0.0002847,18]
[356077973,1741884653887,-500.0,0.0002847,18]
[356077974,1741884653897,-500.0,0.0002847,18]
[356077975,1741884653906,-500.0,0.0002847,18]
[356077976,1741884653916,-500.0,0.0002847,18]
[356077977,1741884653926,-151.0,0.0002847,7]
[356077978,1741884653935,-500.0,0.0002847,18]
[356077979,1741884653945,-500.0,0.0002847,18]
[356077980,1741884653955,-380.79233905,0.0002847,18]
[356077981,1741884653965,-151.0,0.0002847,7]
[356077982,1741884653975,-510.17,0.0002847,18]
[356077983,1741884653984,-500.0,0.0002847,18]
[356077984,1741884653994,-500.0,0.0002847,18]
[356077985,1741884654003,-500.0,0.0002847,18]
[356077986,1741884654013,-500.0,0.0002847,18]
[356077987,1741884654023,-500.0,0.0002847,18]
[356077988,1741884654033,-500.0,0.0002847,18]
[356077989,1741884654043,-500.0,0.0002847,18]
[356077990,1741884654052,-500.0,0.0002847,18]
[356077991,1741884654061,-500.0,0.0002847,18]
[356077992,1741884654071,-500.12523647,0.0002847,18]
[356077993,1741884654080,-214.54722847,0.0002847,18]
[356077994,1741884654090,-604.65,0.0002847,18]
[356077995,1741884654099,-500.0,0.0002847,18]
[356077996,1741884654109,-500.0,0.0002847,18]
[356077997,1741884654120,-500.0,0.0002847,18]
[356077998,1741884654133,-500.72,0.0002847,18]
[356077999,1741884654143,-554.49715867,0.0002847,18]
[356078000,1741884654152,-500.0,0.0002847,18]
[356078001,1741884654161,-512.55,0.0002847,18]
[356078002,1741884654170,-500.0,0.0002847,18]
[356078003,1741884654180,-500.0,0.0002847,18]
[356078004,1741884654191,-500.0,0.0002847,18]
[356078005,1741884654201,-500.0,0.0002847,18]
[356078006,1741884654213,-500.0,0.0002847,18]
[356078007,1741884654223,-500.0,0.0002847,18]
[356078008,1741884654233,-646.98,0.0002847,18]
[356078009,1741884654243,-500.0,0.0002847,18]
[356078010,1741884654253,-548.6821602,0.0002847,18]
[356078011,1741884654262,-500.0,0.0002847,18]
[356078012,1741884654271,-150.0,0.00028472,2]
[356078013,1741884654281,-250.17964307,0.00028473,5]
[356078014,1741884654290,-500.0,0.00028478,18]
[356078015,1741884654300,-256.77,0.00028478,18]
[356078016,1741884654309,-469.53,0.00028478,18]
[356078017,1741884654319,-500.0,0.00028478,18]
[356078018,1741884654329,-500.0,0.00028478,18]
[356078019,1741884654339,-500.0,0.00028478,18]
[356078020,1741884654349,-500.0,0.00028478,18]
[356078021,1741884654359,-202.9,0.00028478,18]
[356078022,1741884654368,-271.62,0.00028478,18]
[356078023,1741884654378,-164.193861,0.00028478,7]
[356078024,1741884654387,-500.0,0.00028478,2]
[356078025,1741884654397,-508.92,0.00028478,18]
[356078026,1741884654407,-500.0,0.00028479,18]
[356078027,1741884654416,-305.41358413,0.00028479,18]
[356078028,1741884654426,-386.84,0.00028479,18]
[356078029,1741884654436,-500.0,0.00028479,18]
[356078030,1741884654446,-500.0,0.00028479,18]
[356078031,1741884654456,-394.17,0.00028479,18]
[356078032,1741884654466,-592.4,0.00028479,18]
[356078033,1741884654475,-334.38,0.00028479,18]
[356078034,1741884654485,-500.0,0.00028479,18]
[356078035,1741884654495,-451.5,0.00028479,18]
[356078036,1741884654504,-500.0,0.00028479,18]
[356078037,1741884654515,-541.95,0.00028479,18]
[356078038,1741884654524,-633.23,0.00028479,18]
[356078039,1741884654534,-185.63,0.00028479,18]
[356078040,1741884654543,-500.0,0.00028479,18]
[356078041,1741884654554,-247.69,0.00028479,18]
[356078042,1741884654563,-178.56,0.00028479,18]
[356078043,1741884654573,-500.0,0.00028479,18]
[356078044,1741884654583,-158.324731,0.00028479,18]
[356078045,1741884654598,-500.0,0.00028479,18]
[356078046,1741884654618,-500.0,0.00028479,18]
[356078047,1741884654630,-217.09,0.00028479,18]
[356078048,1741884654639,-500.0,0.00028479,18]
[356078049,1741884654649,-500.0,0.00028479,18]
[356078050,1741884654659,-500.0,0.00028479,18]
[356078051,1741884654668,-332.07,0.00028479,18]
[356078052,1741884654678,-500.0,0.00028479,18]
[356078053,1741884654689,-178.74,0.00028479,18]
[356078054,1741884654698,-500.0,0.00028479,18]
[356078055,1741884654708,-500.0,0.00028479,18]
[356078056,1741884654718,-500.0,0.00028479,18]
[356078057,1741884654728,-500.0,0.00028479,18]
[356078058,1741884654738,-500.0,0.00028479,18]
[356078059,1741884654748,-500.0,0.00028479,18]
[356078060,1741884654757,-390.5,0.00028479,18]
[356078061,1741884654766,-158.7,0.00028479,18]
[356078062,1741884654776,-500.0,0.00028479,18]
[356078063,1741884654786,-327.04,0.00028479,2]
[356078064,1741884654796,-500.0,0.00028479,18]
[356078065,1741884654806,-188.39,0.00028479,18]
[356078066,1741884654815,-500.0,0.00028479,18]
[356078067,1741884654824,-500.0,0.00028479,18]
[356078068,1741884654833,-444.43,0.00028479,18]
[356078069,1741884654843,-500.0,0.00028479,18]
[356078070,1741884654852,-500.0,0.00028479,18]
[356078071,1741884654861,-307.5,0.00028479,18]
[356078072,1741884654871,-500.0,0.00028479,18]
[356078073,1741884654880,-500.0,0.00028479,18]
[356078074,1741884654890,-180.86,0.00028479,18]
[356078075,1741884654899,-500.0,0.00028479,18]
[356078076,1741884654908,-500.0,0.00028479,18]
[356078077,1741884654918,-248.86,0.00028479,18]
[356078078,1741884654927,-637.67,0.00028479,18]
[356078079,1741884654936,-552.71,0.00028479,18]
[356078080,1741884654946,-500.0,0.00028479,18]
[356078081,1741884654956,-500.0,0.00028479,18]
[356078082,1741884654965,-162.84,0.00028479,18]
[356078083,1741884654975,-500.0,0.00028479,18]
[356078084,1741884654984,-500.0,0.00028479,18]
[356078085,1741884654994,-500.0,0.00028479,7]
[356078086,1741884655003,-500.0,0.00028479,18]
[356078087,1741884655013,-500.0,0.00028479,18]
[356078088,1741884655023,-500.0,0.00028479,18]
[356078089,1741884655032,-500.0,0.00028479,18]
[356078090,1741884655041,-500.0,0.00028479,18]
[356078091,1741884655051,-233.8,0.00028479,18]
[356078092,1741884655061,-500.0,0.00028479,18]
[356078093,1741884655071,-500.0,0.00028479,18]
[356078094,1741884655080,-500.0,0.00028479,18]
[356078095,1741884655090,-500.0,0.00028479,18]
[356078096,1741884655099,-500.0,0.00028479,18]
[356078097,1741884655108,-500.0,0.00028479,18]
[356078098,1741884655118,-500.0,0.00028479,18]
[356078099,1741884655129,-500.0,0.00028479,2]
[356078100,1741884655138,-500.0,0.00028479,18]
[356078101,1741884655148,-500.0,0.00028479,18]
[356078102,1741884655158,-500.0,0.00028479,18]
[356078103,1741884655169,-500.0,0.00028479,18]
[356078104,1741884655179,-311.35,0.00028479,18]
[356078105,1741884655189,-500.0,0.00028479,18]
[356078106,1741884655199,-500.0,0.00028479,18]
[356078107,1741884655211,-500.0,0.00028479,18]
[356078108,1741884655220,-500.0,0.00028479,18]
[356078109,1741884655230,-500.0,0.00028479,18]
[356078110,1741884655239,-557.52,0.00028479,18]
[356078111,1741884655248,-500.0,0.00028479,18]
[356078112,1741884655257,-297.56,0.00028479,18]
[356078113,1741884655267,-473.658249,0.00028479,18]
[356078114,1741884655276,-500.0,0.00028479,18]
[356078115,1741884655285,-500.0,0.00028479,18]
[356078116,1741884655294,-500.0,0.00028479,18]
[356078117,1741884655304,-281.81,0.00028479,18]
[356078118,1741884655313,-500.0,0.00028479,18]
[356078119,1741884655323,-372.05,0.00028479,18]
[356078120,1741884655332,-500.0,0.00028479,18]
[356078121,1741884655342,-168.94,0.00028479,18]
[356078122,1741884655351,-264.7,0.00028479,18]
[356078123,1741884655360,-235.56,0.00028479,18]
[356078124,1741884655369,-287.74,0.00028479,18]
[356078125,1741884655379,-500.0,0.00028479,18]
[356078126,1741884655387,-500.0,0.00028479,18]
[356078127,1741884655398,-500.0,0.00028479,18]
[356078128,1741884655407,-500.0,0.00028479,18]
[356078129,1741884655417,-417.04,0.00028479,18]
[356078130,1741884655459,-394.44,0.00028479,18]
[356078131,1741884655468,-479.54,0.00028479,18]
[356078132,1741884655477,-403.54,0.00028479,18]
[356078133,1741884655486,-500.0,0.00028479,18]
[356078134,1741884655495,-397.8,0.00028479,18]
[356078135,1741884655504,-445.81,0.00028479,18]
[356078136,1741884655513,-406.13,0.00028479,18]
[356078137,1741884655522,-500.0,0.00028479,18]
[356078138,1741884655531,-500.0,0.00028479,18]
[356078139,1741884655539,-359.76,0.00028479,18]
[356078140,1741884655548,-151.0,0.00028479,7]
[356078141,1741884655557,-151.0,0.00028479,7]
[356078142,1741884655567,-209.68,0.00028479,18]
[356078143,1741884655576,-151.0,0.00028479,7]
[356078144,1741884655586,-500.0,0.00028479,18]
[356078145,1741884655595,-257.33,0.00028479,18]
[356078146,1741884655604,-500.0,0.00028479,18]
[356078147,1741884655614,-500.0,0.00028479,18]
[356078148,1741884655624,-500.0,0.00028479,18]
[356078149,1741884655633,-639.71,0.00028479,18]
[356078150,1741884655642,-500.0,0.00028479,18]
[356078151,1741884655651,-500.0,0.00028479,18]
[356078152,1741884655661,-500.0,0.00028479,18]
[356078153,1741884655670,-500.0,0.00028479,18]
[356078154,1741884655679,-314.55,0.00028479,18]
[356078155,1741884655690,-500.0,0.00028479,18]
[356078156,1741884655699,-151.0,0.00028479,7]
[356078157,1741884655709,-500.0,0.00028479,18]
[356078158,1741884655718,-473.65,0.00028479,18]
[356078159,1741884655728,-500.0,0.00028479,18]
[356078160,1741884655737,-497.45,0.00028479,18]
[356078161,1741884655746,-150.0,0.00028479,2]
[356078162,1741884655756,-151.0,0.00028479,7]
[356078163,1741884655765,-257.04,0.00028479,18]
[356078164,1741884655777,-500.0,0.00028479,18]
[356078165,1741884655786,-151.0,0.00028479,7]
[356078166,1741884655796,-559.07,0.00028479,18]
[356078167,1741884655805,-500.0,0.00028479,18]
[356078168,1741884655814,-500.0,0.00028479,18]
[356078169,1741884655824,-182.72,0.00028479,18]
[356078170,1741884655832,-500.0,0.00028479,18]
[356078171,1741884655841,-500.0,0.00028479,18]
[356078172,1741884655850,-609.48,0.00028479,18]
[356078173,1741884655860,-309.21,0.00028479,18]
[356078174,1741884655869,-151.0,0.00028479,7]
[356078175,1741884655879,-500.0,0.00028479,18]
[356078176,1741884655888,-500.0,0.00028479,18]
[356078177,1741884655897,-500.0,0.00028479,18]
[356078178,1741884655907,-1102.87,0.00028479,18]
[356078179,1741884655916,-617.62,0.00028479,18]
[356078180,1741884655926,-325.11,0.00028479,18]
[356078181,1741884655935,-500.0,0.00028479,18]
[356078182,1741884655946,-500.0,0.00028479,18]
[356078183,1741884655956,-597.57,0.00028479,18]
[356078184,1741884655966,-500.0,0.00028479,18]
[356078185,1741884655976,-500.0,0.00028479,18]
[356078186,1741884655985,-473.63,0.00028479,18]
[356078187,1741884655995,-500.0,0.00028479,18]
[356078188,1741884656005,-500.0,0.00028479,18]
[356078189,1741884656014,-500.0,0.00028479,18]
[356078190,1741884656023,-258.17,0.00028479,18]
[356078191,1741884656032,-500.0,0.00028479,18]
[356078192,1741884656041,-500.0,0.00028479,18]
[356078193,1741884656050,-259.86,0.00028479,18]
[356078194,1741884656059,-500.0,0.00028479,18]
[356078195,1741884656069,-500.0,0.00028479,18]
[356078196,1741884656078,-500.0,0.00028479,18]
[356078197,1741884656088,-500.0,0.00028479,18]
[356078198,1741884656098,-536.96,0.00028479,18]
[356078199,1741884656108,-500.0,0.00028479,18]
[356078200,1741884656118,-500.0,0.00028479,18]
[356078201,1741884656135,-511.71,0.00028479,18]
[356078202,1741884656145,-501.51,0.00028479,18]
[356078203,1741884656155,-500.0,0.00028479,18]
[356078204,1741884656164,-500.0,0.00028479,18]
[356078205,1741884656175,-500.0,0.00028479,18]
[356078206,1741884656184,-500.0,0.00028479,18]
[356078207,1741884656196,-167.79,0.00028479,18]
[356078208,1741884656206,-968.555085,0.00028479,7]
[356078209,1741884656216,-968.555085,0.00028479,7]
[356078210,1741884656226,-254.38,0.00028479,18]
[356078211,1741884656235,-500.0,0.00028479,18]
[356078212,1741884656245,-500.0,0.00028479,18]
[356078213,1741884656255,-226.03,0.00028479,18]
[356078214,1741884656265,-500.0,0.00028479,18]
[356078215,1741884656274,-500.0,0.00028479,18]
[356078216,1741884656284,-597.91,0.00028479,18]
[356078217,1741884656293,-395.59,0.00028479,18]
[356078218,1741884656303,-500.0,0.00028479,18]
[356078219,1741884656312,-254.37,0.00028479,18]
[356078220,1741884656322,-474.87,0.00028479,18]
[356078221,1741884656332,-500.0,0.00028479,18]
[356078222,1741884656342,-151.0,0.00028479,7]
[356078223,1741884656351,-4094.11,0.00028479,18]
[356078224,1741884656361,-4094.11,0.00028479,18]
[356078225,1741884656370,-151.0,0.00028479,7]
[356078226,1741884656380,-250.92,0.00028479,18]
[356078227,1741884656389,-500.0,0.00028479,18]
[356078228,1741884656398,-500.0,0.00028479,18]
[356078229,1741884656407,-500.0,0.00028479,18]
[356078230,1741884656417,-185.59,0.00028479,18]
[356078231,1741884656426,-500.0,0.00028479,18]
[356078232,1741884656435,-458.39,0.00028479,18]
[356078233,1741884656445,-500.0,0.00028479,2]
[356078234,1741884656455,-500.0,0.00028479,2]
[356078235,1741884656464,-500.0,0.00028479,18]
[356078236,1741884656473,-500.0,0.00028479,18]
[356078237,1741884656482,-469.06,0.00028479,18]
[356078238,1741884656491,-151.272702,0.00028479,7]
[356078239,1741884656500,-500.0,0.00028479,2]
[356078240,1741884656509,-500.0,0.00028479,2]
[356078241,1741884656519,-315.05,0.00028479,18]
[356078242,1741884656528,-500.0,0.00028479,18]
[356078243,1741884656537,-288.54,0.00028479,18]
[356078244,1741884656546,-596.93,0.00028479,18]
[356078245,1741884656555,-654.0,0.0002848,5]
[356078246,1741884656564,-351598.67410514,0.0002848,2]
[356078247,1741884656683,-500.0,0.00028469,18]
[356078248,1741884656694,-164.39653585,0.0002848,2]
[356078249,1741884656703,-993.25736734,0.0002848,2]
[356078250,1741884656714,-2306.74263266,0.0002848,2]
[356078251,1741884656723,-500.0,0.0002848,18]
[356078252,1741884656732,-500.0,0.0002848,18]
[356078253,1741884656741,-604.93,0.0002848,18]
[356078254,1741884656750,-121.84620544,0.0002848,18]
[356078255,1741884656761,-370.80323427,0.0002848,18]
[356078256,1741884656772,-7.35056029,0.0002848,18]
[356078257,1741884656782,-346.75876451,0.0002848,18]
[356078258,1741884656793,-161.21123549,0.0002848,18]
[356078259,1741884656802,-488.93,0.0002848,18]
[356078260,1741884656811,-517.74,0.0002848,18]
[356078261,1741884656821,-583.31,0.0002848,18]
[356078262,1741884656830,-607.44,0.0002848,18]
[356078263,1741884656839,-500.0,0.0002848,18]
[356078264,1741884656848,-559.2,0.0002848,18]
[356078265,1741884656858,-500.0,0.0002848,18]
[356078266,1741884656867,-484.68,0.0002848,18]
[356078267,1741884656876,-500.0,0.0002848,18]
[356078268,1741884656886,-479.56,0.0002848,18]
[356078269,1741884656895,-500.0,0.0002848,18]
[356078270,1741884656905,-500.0,0.0002848,18]
[356078271,1741884656915,-500.0,0.0002848,7]
[356078272,1741884656924,-500.0,0.0002848,18]
[356078273,1741884656934,-608.74,0.0002848,18]
[356078274,1741884656944,-500.0,0.0002848,18]
[356078275,1741884656954,-370.27,0.0002848,18]
[356078276,1741884656963,-151.0,0.0002848,7]
[356078277,1741884656972,-348.26,0.0002848,18]
[356078278,1741884656982,-500.0,0.0002848,18]
[356078279,1741884656992,-500.0,0.0002848,18]
[356078280,1741884657001,-566.98,0.0002848,18]
[356078281,1741884657011,-151.0,0.0002848,7]
[356078282,1741884657021,-151.0,0.0002848,7]
[356078283,1741884657030,-286.3,0.0002848,18]
[356078284,1741884657039,-648.21,0.0002848,18]
[356078285,1741884657048,-466.27,0.0002848,18]
[356078286,1741884657058,-500.0,0.0002848,18]
[356078287,1741884657067,-556.75,0.0002848,18]
[356078288,1741884657076,-500.0,0.0002848,18]
[356078289,1741884657086,-202.37,0.0002848,18]
[356078290,1741884657095,-270.2,0.0002848,18]
[356078291,1741884657105,-151.0,0.0002848,7]
[356078292,1741884657114,-151.0,0.0002848,7]
[356078293,1741884657124,-290.513564,0.0002848,7]